bitfinex/quotes_SOLUSD_20251204
["timestamp","ask_amount","ask_price","bid_price","bid_amount"]
[1764887035994,7.88603778,139.16,139.13,0.68]
[1764887036215,4.7939831,139.15,139.13,0.68]
[1764887036415,7.88603778,139.16,139.13,0.68]
[1764887036613,4.79506706,139.15,139.13,0.68]
[1764887036820,7.88603778,139.16,139.13,0.68]
[1764887037011,4.79506706,139.15,139.13,0.68]
[1764887037197,4.79636822,139.14,139.13,0.68]
[1764887039623,4.79636822,139.14,139.12,0.68]
[1764887039835,0.7,139.15,139.12,0.68]
[1764887040130,4.79781926,139.14,139.12,0.68]
[1764887040327,7.88675647,139.15,139.12,0.68]
[1764887040502,4.79768578,139.14,139.12,0.68]
[1764887040702,7.88675647,139.15,139.12,0.68]
[1764887040903,4.79627882,139.14,139.12,0.68]
[1764887041116,7.88675647,139.15,139.12,0.68]
[1764887041323,4.79618554,139.14,139.12,0.68]
[1764887041635,7.88675647,139.15,139.12,0.68]
[1764887041931,11.98334913,139.14,139.09,7.18918657]
[1764887042247,13.6062858,139.13,139.09,0.68]
[1764887042408,4.79634088,139.12,139.1,0.68]
[1764887042723,4.79634088,139.11,139.1,0.68]
[1764887043814,4.79634088,139.11,139.07,25.8952805]
[1764887043815,12.68533563,139.11,139.07,20.49022778]
[1764887044013,4.79634088,139.1,139.08,0.68]
[1764887044330,12.58871711,139.11,139.08,0.68]
[1764887044527,4.78746486,139.1,139.08,0.68]
[1764887044705,4.78746486,139.1,139.06,4.89972236]
[1764887044706,5.39972236,139.1,139.06,0.88]
[1764887045032,4.69972236,139.07,139.06,0.2]
[1764887045206,9.48648289,139.07,139.06,0.2]
[1764887045409,10.1813902,139.07,139.06,0.2]
[1764887045926,17.37201362,139.07,139.06,0.2]
[1764887046313,12.59034578,139.07,139.06,0.2]
[1764887046510,4.69972236,139.09,139.06,0.88]
[1764887046716,5.4777865,139.08,139.06,0.88]
[1764887046917,0.7,139.08,139.06,0.88]
[1764887047228,5.47858096,139.08,139.06,0.88]
[1764887047434,0.7,139.08,139.06,0.2]
[1764887050340,19.80946992,139.09,139.07,0.68]
[1764887050341,7.18974756,139.09,139.07,0.68]
[1764887051435,11.95874877,139.1,139.07,5.37972236]
[1764887051602,11.95874877,139.1,139.08,0.68]
[1764887051803,7.18927001,139.1,139.08,5.37972236]
[1764887052428,7.18927001,139.1,139.09,0.68]
[1764887053417,7.18819852,139.12,139.09,13.29972236]
[1764887053621,7.18819852,139.12,139.1,4.69972236]
[1764887053833,7.18819852,139.12,139.1,5.38972236]
[1764887054008,7.18819852,139.12,139.11,0.69]
[1764887056042,7.18752246,139.13,139.11,0.69]
[1764887057318,7.84752246,139.13,139.11,0.69]
[1764887057823,7.18752246,139.13,139.11,5.38972236]
[1764887058136,7.84648939,139.15,139.11,5.38972236]
[1764887058435,12.61286197,139.15,139.12,0.69]
[1764887059122,12.61286197,139.15,139.11,4.69972236]
[1764887059123,0.66,139.14,139.11,5.38972236]
[1764887060534,7.84723078,139.14,139.11,5.38972236]
[1764887060738,7.84723078,139.14,139.11,4.69972236]
[1764887060940,11.95310114,139.15,139.13,4.69972236]
[1764887061322,11.95310114,139.15,139.13,5.38972236]
[1764887061522,11.95310114,139.15,139.13,0.69]
[1764887061722,7.18672856,139.15,139.13,0.69]
[1764887067035,0.66,139.15,139.13,0.69]
[1764887068032,7.84684621,139.15,139.13,0.69]
[1764887069039,7.84684621,139.15,139.12,4.69972236]
[1764887069345,7.84684621,139.15,139.12,5.38972236]
[1764887070348,12.61713278,139.15,139.12,5.38972236]
[1764887070542,12.61713278,139.15,139.12,4.69972236]
[1764887070751,12.61713278,139.15,139.13,0.69]
[1764887071867,12.61713278,139.15,139.12,5.38972236]
[1764887073541,7.84684621,139.15,139.12,5.38972236]
[1764887073968,12.61873844,139.15,139.12,5.38972236]
[1764887075142,7.84684621,139.15,139.12,5.38972236]
[1764887075869,7.84684621,139.15,139.13,5.38972236]
[1764887076874,7.84684621,139.15,139.13,0.69]
[1764887079173,7.84684621,139.15,139.12,4.69972236]
[1764887079375,7.84684621,139.15,139.12,5.38972236]
[1764887080076,7.18617949,139.16,139.13,5.38972236]
[1764887080275,11.95828636,139.16,139.14,4.69972236]
[1764887080569,7.84617949,139.16,139.14,4.69972236]
[1764887080746,7.84617949,139.16,139.14,5.38972236]
[1764887081682,7.84617949,139.16,139.14,4.69972236]
[1764887081854,7.84617949,139.16,139.13,12.57724184]
[1764887082877,7.87617949,139.16,139.13,11.88724184]
[1764887083248,7.87617949,139.16,139.13,12.57724184]
[1764887083779,7.87617949,139.16,139.14,0.69]
[1764887083970,7.87617949,139.16,139.13,12.57724184]
[1764887084382,7.87617949,139.16,139.13,10.19499537]
[1764887084874,7.18617949,139.16,139.14,0.69]
[1764887085253,7.87617949,139.16,139.14,0.69]
[1764887086577,3.69747589,139.15,139.1,0.69]
[1764887086778,3.00747589,139.14,139.11,24.918864]
[1764887086956,3.69747589,139.14,139.11,24.918864]
[1764887087277,0.69,139.13,139.11,24.918864]
[1764887088081,0.69,139.12,139.08,3.69747589]
[1764887088259,0.69,139.12,139.09,0.69]
[1764887089583,7.8781127,139.12,139.09,7.87950297]
[1764887090176,7.1881127,139.12,139.09,7.87950297]
[1764887090381,7.1881127,139.12,139.1,0.69]
[1764887091382,0.69,139.12,139.1,0.69]
[1764887092682,12.65532351,139.13,139.1,3.69747589]
[1764887093259,7.87721602,139.14,139.11,3.69747589]
[1764887093577,4.77971923,139.13,139.11,3.69747589]
[1764887093760,5.46971923,139.13,139.11,3.69747589]
[1764887094363,0.69,139.13,139.11,3.69747589]
[1764887095383,7.87648939,139.15,139.12,3.00747589]
[1764887095587,4.78276594,139.14,139.13,3.00747589]
[1764887095762,4.78276594,139.15,139.13,3.69747589]
[1764887095966,7.87613801,139.16,139.13,3.69747589]
[1764887096177,4.78327236,139.15,139.13,3.69747589]
[1764887096382,7.87613801,139.16,139.13,3.69747589]
[1764887096562,4.78541576,139.15,139.13,3.69747589]
[1764887096768,7.87613801,139.16,139.13,3.69747589]
[1764887096983,4.7854144,139.15,139.13,3.69747589]
[1764887097178,7.87613801,139.16,139.13,3.69747589]
[1764887097470,4.78652698,139.15,139.13,3.69747589]
[1764887097774,7.87613801,139.16,139.13,3.69747589]
[1764887097959,4.78652348,139.15,139.13,3.69747589]
[1764887098164,7.87613801,139.16,139.13,3.69747589]
[1764887098388,4.78652348,139.15,139.13,0.69]
[1764887098566,4.78652348,139.14,139.13,0.69]
[1764887101703,7.87613801,139.16,139.13,0.69]
[1764887101870,4.78694129,139.15,139.13,0.69]
[1764887102070,7.87613801,139.16,139.13,0.69]
[1764887102270,4.78694129,139.15,139.13,0.69]
[1764887102466,7.87613801,139.16,139.13,0.69]
[1764887102688,4.78727987,139.15,139.13,0.69]
[1764887102994,7.87613801,139.16,139.13,0.69]
[1764887103192,4.78710129,139.15,139.12,10.19517512]
[1764887103399,0.69,139.15,139.12,10.88517512]
[1764887103783,0.69,139.15,139.13,0.69]
[1764887104285,0.69,139.15,139.12,10.88517512]
[1764887105272,0.69,139.18,139.14,3.00747589]
[1764887105476,5.47711684,139.17,139.14,3.00747589]
[1764887105673,4.78711684,139.16,139.14,3.69747589]
[1764887105887,4.78711684,139.16,139.12,7.92]
[1764887105888,4.78711684,139.15,139.12,7.92]
[1764887106094,4.78694934,139.14,139.12,7.92]
[1764887106294,0.69,139.14,139.12,7.92]
[1764887106594,47.86047247,139.18,139.1,7.92]
[1764887106595,3.69747589,139.13,139.1,7.92]
[1764887106807,0.69,139.13,139.1,8.61]
[1764887107185,5.98315873,139.16,139.12,3.00747589]
[1764887107498,5.47740519,139.15,139.12,3.00747589]
[1764887107699,7.87601434,139.16,139.13,0.69]
[1764887107886,4.78889342,139.15,139.13,0.69]
[1764887108086,7.87601434,139.16,139.13,0.69]
[1764887108306,4.78889444,139.15,139.13,0.69]
[1764887108605,7.87601434,139.16,139.13,0.69]
[1764887108792,4.78875176,139.15,139.13,0.69]
[1764887109105,7.87601434,139.16,139.13,0.69]
[1764887109403,4.78833203,139.15,139.13,0.69]
[1764887109586,7.87601434,139.16,139.13,0.69]
[1764887109786,4.78820554,139.15,139.13,0.69]
[1764887109974,7.87601434,139.16,139.13,0.69]
[1764887110171,4.78820482,139.15,139.13,0.69]
[1764887110402,7.87601434,139.16,139.13,0.69]
[1764887110588,4.78806898,139.15,139.13,0.69]
[1764887110901,7.87601434,139.16,139.13,0.69]
[1764887111105,4.78797593,139.15,139.13,0.69]
[1764887111304,7.87601434,139.16,139.13,0.69]
[1764887111507,4.78791254,139.15,139.13,0.69]
[1764887111690,7.87601434,139.16,139.13,0.69]
[1764887111890,4.7879121,139.15,139.13,0.69]
[1764887112090,7.87601434,139.16,139.13,0.69]
[1764887112291,4.78929069,139.15,139.13,3.69747589]
[1764887112490,7.87601434,139.16,139.13,3.69747589]
[1764887112693,4.78881282,139.15,139.13,3.69747589]
[1764887112907,0.68,139.15,139.11,10.19581789]
[1764887113097,5.46849387,139.14,139.11,8.63]
[1764887113292,0.68,139.14,139.11,8.63]
[1764887113600,0.68,139.13,139.11,8.63]
[1764887114704,7.86760775,139.13,139.11,8.63]
[1764887115006,7.86760775,139.13,139.1,10.92747589]
[1764887115204,7.86760775,139.13,139.1,8.63]
[1764887115883,7.86804764,139.12,139.08,24.20886578]
[1764887116079,7.86804764,139.12,139.08,34.42634167]
[1764887116288,7.86804764,139.12,139.09,0.71]
[1764887116605,7.86804764,139.12,139.09,3.71747589]
[1764887119005,3.00747589,139.1,139.06,0.2]
[1764887119211,0.68,139.11,139.06,0.2]
[1764887119212,7.79603764,139.09,139.06,0.2]
[1764887119386,3.68747589,139.1,139.06,0.91]
[1764887119593,4.78621728,139.09,139.06,0.91]
[1764887119787,16.49193669,139.12,139.06,7.39112565]
[1764887120005,0.68,139.1,139.07,0.71]
[1764887120402,4.7854756,139.11,139.08,3.00747589]
[1764887120596,0.68,139.11,139.08,3.71747589]
[1764887121795,7.86890189,139.11,139.08,3.71747589]
[1764887122116,12.65413172,139.11,139.08,3.71747589]
[1764887122414,7.86890189,139.11,139.08,3.71747589]
[1764887122607,7.86890189,139.11,139.07,3.00747589]
[1764887122608,0.68,139.1,139.07,3.00747589]
[1764887122815,0.68,139.1,139.06,19.028425]
[1764887123003,0.68,139.1,139.06,18.318425]
[1764887123204,0.68,139.1,139.07,0.71]
[1764887123392,0.68,139.1,139.06,3.20747589]
[1764887123705,0.68,139.1,139.06,8.83]
[1764887123888,7.18958947,139.09,139.06,8.83]
[1764887124087,7.18958947,139.09,139.06,11.83747589]
[1764887124289,17.97138954,139.11,139.06,11.83747589]
[1764887124290,0.68,139.11,139.07,3.71747589]
[1764887124488,105.70747589,139.12,139.07,3.71747589]
[1764887124710,0.68,139.1,139.07,3.71747589]
[1764887124893,105.70747589,139.12,139.07,3.00747589]
[1764887125216,12.65309237,139.11,139.08,0.71]
[1764887125519,0.68,139.1,139.07,10.908088]
[1764887126405,0.68,139.1,139.07,7.90061211]
[1764887128820,7.86908027,139.1,139.07,7.90061211]
[1764887130617,10.87655616,139.1,139.07,0.71]
[1764887130820,3.68747589,139.09,139.06,0.2]
[1764887131002,3.00747589,139.07,139.06,0.2]
[1764887131497,3.68747589,139.07,139.06,0.2]
[1764887132325,0.68,139.07,139.06,0.2]
[1764887132526,3.68747589,139.07,139.06,0.2]
[1764887132824,10.87809931,139.07,139.06,0.2]
[1764887134408,7.87062342,139.07,139.06,0.2]
[1764887134614,10.87809931,139.07,139.06,0.2]
[1764887136020,7.87062342,139.07,139.06,0.2]
[1764887136316,10.87809931,139.07,139.06,0.2]
[1764887139730,19.68804423,139.07,139.06,0.2]
[1764887139935,24.45490928,139.07,139.06,0.2]
[1764887140438,19.68804423,139.07,139.06,0.2]
[1764887140736,24.45311077,139.07,139.06,0.2]
[1764887141819,25.11880892,139.05,139.04,0.2]
[1764887142021,28.12628481,139.05,139.04,0.2]
[1764887142203,28.80628481,139.05,139.04,0.2]
[1764887143532,35.99794248,139.05,139.04,0.2]
[1764887143927,43.91794248,139.05,139.04,0.2]
[1764887144436,7.19165767,139.05,139.04,0.2]
[1764887147855,12.5991548,139.05,139.04,0.2]
[1764887148620,7.19165767,139.05,139.04,0.2]
[1764887151125,12.5991548,139.05,139.04,0.2]
[1764887155149,7.89165767,139.05,139.04,0.2]
[1764887158549,7.19165767,139.05,139.04,0.2]
[1764887168056,25.16899179,139.06,139.04,0.91]
[1764887168262,29.87648892,139.06,139.04,0.91]
[1764887168569,30.57648892,139.06,139.04,0.91]
[1764887168942,30.57648892,139.06,139.04,0.2]
[1764887173566,25.86899179,139.06,139.04,0.2]
[1764887174070,25.86899179,139.06,139.03,0.61]
[1764887174850,11.98011751,139.05,139.03,0.61]
[1764887175055,7.19180172,139.05,139.03,0.61]
[1764887175868,17.97615756,139.08,139.04,4.70749713]
[1764887176083,17.97346129,139.1,139.07,4.70749713]
[1764887176370,11.98076783,139.09,139.06,4.70749713]
[1764887176568,4.79096718,139.08,139.06,4.70749713]
[1764887176745,7.18980065,139.09,139.07,0.68]
[1764887177554,6.65315873,139.13,139.08,4.70749713]
[1764887177760,4.70749713,139.14,139.1,4.70749713]
[1764887177761,11.97876633,139.12,139.1,4.70749713]
[1764887177959,4.79072723,139.11,139.1,4.70749713]
[1764887178762,4.79072723,139.11,139.1,5.38749713]
[1764887179262,17.96693119,139.15,139.1,5.38749713]
[1764887179488,4.78583391,139.14,139.11,5.38749713]
[1764887179658,4.78583391,139.13,139.11,5.38749713]
[1764887179983,4.78583391,139.13,139.12,0.68]
[1764887180155,7.18720181,139.14,139.12,0.68]
[1764887180572,11.97100513,139.14,139.12,0.68]
[1764887180884,7.18648939,139.15,139.12,5.38749713]
[1764887181060,4.78362084,139.14,139.12,5.38749713]
[1764887181392,11.97011023,139.15,139.12,5.38749713]
[1764887182084,11.97011023,139.15,139.13,0.68]
[1764887183258,7.18648939,139.15,139.13,0.68]
[1764887187481,7.8560505,139.16,139.13,5.38749713]
[1764887187654,7.8560505,139.16,139.13,0.68]
[1764887189079,7.1860505,139.16,139.12,12.62749713]
[1764887189275,7.1860505,139.16,139.1,17.97188821]
[1764887189276,4.70749713,139.14,139.1,0.68]
[1764887189672,0.67,139.13,139.1,0.68]
[1764887189982,4.70749713,139.12,139.08,15.78994802]
[1764887190357,0.67,139.11,139.08,15.78994802]
[1764887190850,0.67,139.11,139.08,20.49744515]
[1764887191183,7.85834178,139.12,139.09,0.68]
[1764887192153,7.18834178,139.12,139.09,0.68]
[1764887192357,0.67,139.11,139.08,20.49744515]
[1764887192888,7.85874478,139.11,139.08,13.30749713]
[1764887193273,7.85874478,139.11,139.08,8.6]
[1764887193664,7.18874478,139.11,139.09,0.68]
[1764887196479,5.37749713,139.1,139.05,0.68]
[1764887196681,4.70749713,139.09,139.05,8.6]
[1764887196980,5.37749713,139.09,139.05,8.6]
[1764887197176,7.86010641,139.08,139.05,0.68]
[1764887197686,5.37749713,139.07,139.03,7.87245347]
[1764887197983,5.37749713,139.07,139.04,7.8721702]
[1764887198163,0.67,139.06,139.03,7.87247324]
[1764887199386,5.37749713,139.06,139.02,7.92]
[1764887199682,0.67,139.06,139.03,7.87263719]
[1764887200482,7.86133092,139.06,139.03,0.68]
[1764887201389,7.19133092,139.06,139.03,5.38749713]
[1764887201585,7.86133092,139.06,139.03,0.68]
[1764887203882,0.66,139.05,139.03,0.68]
[1764887204091,5.36749713,139.07,139.03,0.68]
[1764887204468,0.66,139.06,139.03,0.68]
[1764887204966,7.85140205,139.06,139.03,0.68]
[1764887205985,7.19081241,139.07,139.03,12.58000481]
[1764887206500,7.19081241,139.07,139.04,0.72]
[1764887207292,7.19081241,139.07,139.04,7.91207505]
[1764887207590,124.34520878,139.1,139.05,10.93171151]
[1764887207777,123.68520878,139.1,139.05,11.65171151]
[1764887208085,3.67171151,139.09,139.06,0.72]
[1764887208669,10.8613753,139.09,139.06,0.72]
[1764887210881,10.8613753,139.09,139.05,15.11160127]
[1764887210882,0.66,139.08,139.05,15.83160127]
[1764887211496,10.8613753,139.09,139.05,15.83160127]
[1764887212495,10.2013753,139.09,139.05,15.83160127]
[1764887212671,0.66,139.08,139.05,15.83160127]
[1764887212871,0.66,139.08,139.06,0.72]
[1764887213292,7.84966379,139.09,139.06,0.72]
[1764887213974,7.18966379,139.09,139.06,0.72]
[1764887214178,10.8613753,139.09,139.06,0.72]
[1764887214376,0.66,139.12,139.07,3.01171151]
[1764887214574,0.66,139.12,139.08,10.93171151]
[1764887215071,0.66,139.12,139.09,3.73171151]
[1764887215674,7.84826068,139.12,139.09,3.73171151]
[1764887215890,10.85997219,139.12,139.07,3.01171151]
[1764887216108,0.66,139.11,139.08,0.72]
[1764887217000,3.67171151,139.11,139.07,0.72]
[1764887217392,0.66,139.1,139.07,0.72]
[1764887217606,0.66,139.1,139.07,3.73171151]
[1764887217898,7.84939665,139.1,139.07,3.73171151]
[1764887219275,7.18939665,139.1,139.06,18.12262151]
[1764887219482,0.66,139.09,139.06,18.84262151]
[1764887219802,0.66,139.09,139.07,3.01171151]
[1764887220389,0.66,139.09,139.06,18.84262151]
[1764887220390,7.84965613,139.09,139.06,18.84262151]
[1764887220573,7.18965613,139.09,139.06,18.12262151]
[1764887220777,7.84965613,139.09,139.07,3.73171151]
[1764887221009,7.84965613,139.09,139.07,3.01171151]
[1764887221183,7.84965613,139.09,139.06,18.84262151]
[1764887222378,8.80994492,139.12,139.07,0.72]
[1764887222592,7.78686424,139.11,139.07,0.72]
[1764887222786,8.44686424,139.11,139.07,0.72]
[1764887222986,0.66,139.1,139.07,0.72]
[1764887223399,0.66,139.1,139.06,18.84262151]
[1764887224102,7.18958947,139.09,139.07,3.73171151]
[1764887224306,7.18958947,139.09,139.06,18.84262151]
[1764887224614,7.84958947,139.09,139.06,18.84262151]
[1764887225515,7.18958947,139.09,139.06,3.01171151]
[1764887225693,0.66,139.08,139.05,27.24057551]
[1764887225889,0.66,139.08,139.05,27.96057551]
[1764887226611,0.66,139.08,139.06,0.72]
[1764887227582,7.8501464,139.08,139.06,3.73171151]
[1764887229010,7.8501464,139.08,139.03,3.01171151]
[1764887229011,0.66,139.07,139.03,3.01171151]
[1764887229307,0.66,139.07,139.04,3.01171151]
[1764887230295,0.66,139.07,139.03,3.01171151]
[1764887231094,7.19114051,139.06,139.03,3.01171151]
[1764887231337,7.19114051,139.06,139.03,3.73171151]
[1764887231615,7.85114051,139.06,139.03,3.73171151]
[1764887232591,7.19068649,139.07,139.03,10.20423571]
[1764887232805,7.85068649,139.07,139.04,3.73171151]
[1764887233494,0.66,139.06,139.03,3.01171151]
[1764887233815,0.66,139.06,139.03,3.69171151]
[1764887237220,7.85141188,139.06,139.03,3.69171151]
[1764887237396,7.85141188,139.06,139.02,3.01171151]
[1764887237590,0.66,139.05,139.01,10.93171151]
[1764887237787,0.66,139.05,139.01,7.92]
[1764887237993,3.67171151,139.05,139.01,7.92]
[1764887238215,5.44814728,139.05,139.01,10.93171151]
[1764887238420,28.18097467,139.06,138.99,3.89171151]
[1764887238421,8.45866567,139.04,138.99,3.89171151]
[1764887238606,3.67171151,139.04,139.0,7.92]
[1764887238916,0.66,139.03,139.0,8.6]
[1764887239118,0.66,139.03,139.0,11.61171151]
[1764887239414,7.85280751,139.03,139.0,11.61171151]
[1764887240306,7.85280751,139.03,139.0,8.6]
[1764887242011,7.85280751,139.03,139.0,10.93171151]
[1764887242217,11.97824857,139.04,139.01,0.68]
[1764887242424,0.66,139.05,139.01,3.69171151]
[1764887243519,7.85182379,139.05,139.02,0.68]
[1764887244522,12.63521966,139.05,139.02,0.68]
[1764887245319,0.66,139.04,139.02,0.68]
[1764887246310,12.63521966,139.05,139.02,0.68]
[1764887246701,11.97521966,139.05,139.02,0.68]
[1764887246901,0.66,139.04,139.02,0.68]
[1764887250152,0.66,139.04,139.01,10.88517567]
[1764887253553,11.97521966,139.05,139.02,0.68]
[1764887253886,0.66,139.04,139.02,7.87319056]
[1764887254521,7.85142689,139.06,139.02,7.19319056]
[1764887254723,0.66,139.05,139.03,0.68]
[1764887254942,0.66,139.05,139.02,10.88490207]
[1764887259450,111.50994492,139.08,139.04,3.01171151]
[1764887259451,7.85018677,139.08,139.04,3.01171151]
[1764887259665,0.66,139.11,139.07,3.01171151]
[1764887259832,0.66,139.11,139.08,3.01171151]
[1764887260028,7.79191052,139.13,139.08,3.01171151]
[1764887260029,4.78019901,139.12,139.08,3.69171151]
[1764887260241,12.62845686,139.12,139.09,0.68]
[1764887260434,0.66,139.11,139.08,3.69171151]
[1764887260742,0.66,139.11,139.08,0.68]
[1764887260932,5.44019901,139.11,139.08,0.68]
[1764887261447,12.62889282,139.11,139.08,0.68]
[1764887262353,12.62889282,139.11,139.08,3.69171151]
[1764887263151,0.67,139.1,139.08,3.69171151]
[1764887263327,0.67,139.1,139.08,0.68]
[1764887264227,0.67,139.1,139.08,3.69171151]
[1764887265328,0.67,139.1,139.08,10.88170025]
[1764887265528,0.67,139.11,139.08,10.88170025]
[1764887265833,0.67,139.11,139.09,3.01171151]
[1764887267231,7.85856985,139.11,139.08,10.88170025]
[1764887267430,0.67,139.11,139.08,10.88170025]
[1764887268157,0.67,139.11,139.08,7.86998874]
[1764887268362,7.85865747,139.11,139.08,12.57271285]
[1764887268659,7.85865747,139.11,139.07,15.11045251]
[1764887268853,7.85865747,139.11,139.08,5.37272411]
[1764887269156,0.67,139.1,139.07,15.78045251]
[1764887269456,0.67,139.1,139.08,5.37272411]
[1764887270255,0.67,139.1,139.08,12.56275391]
[1764887270459,0.67,139.11,139.08,12.56275391]
[1764887272033,0.67,139.11,139.09,4.70272411]
[1764887272251,0.67,139.11,139.08,12.56275391]
[1764887272762,7.85860023,139.11,139.08,12.56275391]
[1764887272960,7.18860023,139.11,139.08,12.56275391]
[1764887273264,0.67,139.1,139.08,12.56275391]
[1764887274663,0.67,139.1,139.08,11.89275391]
[1764887279337,0.67,139.1,139.08,12.56275391]
[1764887282967,0.67,139.13,139.09,5.37272411]
[1764887283169,7.85653553,139.15,139.12,4.70272411]
[1764887283375,0.67,139.14,139.12,4.70272411]
[1764887283973,4.78115836,139.16,139.13,5.37272411]
[1764887284172,0.67,139.17,139.14,4.70272411]
[1764887284380,0.67,139.17,139.14,5.37272411]
[1764887284673,0.67,139.17,139.14,4.70272411]
[1764887284876,7.85555224,139.17,139.14,4.70272411]
[1764887285349,0.67,139.16,139.14,4.70272411]
[1764887286453,0.67,139.17,139.15,5.37272411]
[1764887286654,0.67,139.17,139.15,4.70272411]
[1764887287152,7.18511744,139.18,139.15,12.55921175]
[1764887287153,0.67,139.18,139.15,12.55921175]
[1764887287554,0.67,139.17,139.15,12.55921175]
[1764887287765,0.67,139.17,139.15,4.70272411]
[1764887288059,0.67,139.17,139.14,5.37272411]
[1764887288662,0.67,139.17,139.14,4.70272411]
[1764887288863,0.67,139.17,139.12,31.41657678]
[1764887288864,4.70272411,139.16,139.12,31.41657678]
[1764887289047,0.67,139.15,139.12,23.49657678]
[1764887289575,0.67,139.15,139.12,24.16657678]
[1764887290157,0.67,139.17,139.14,4.70272411]
[1764887290375,0.67,139.17,139.14,7.9]
[1764887290548,0.67,139.17,139.15,4.70272411]
[1764887292472,4.70272411,139.16,139.1,18.64201142]
[1764887292676,12.55820771,139.17,139.12,4.70272411]
[1764887292876,0.67,139.16,139.12,11.89046229]
[1764887293069,0.67,139.16,139.12,12.55046229]
[1764887293953,0.67,139.16,139.13,7.18748604]
[1764887294379,7.85599966,139.16,139.12,12.55053513]
[1764887294590,0.67,139.15,139.11,19.79108736]
[1764887294759,0.67,139.15,139.11,20.45108736]
[1764887296256,7.85661731,139.15,139.11,20.45108736]
[1764887296658,0.67,139.14,139.11,20.45108736]
[1764887297065,0.67,139.14,139.11,7.18836325]
[1764887297868,0.67,139.14,139.1,19.79164113]
[1764887298081,0.67,139.14,139.1,20.45164113]
[1764887298385,7.18752246,139.13,139.1,7.9]
[1764887298581,7.18752246,139.13,139.09,21.01158811]
[1764887298783,5.37272411,139.12,139.08,15.08998444]
[1764887298984,5.37272411,139.12,139.08,15.74998444]
[1764887299189,0.67,139.11,139.08,20.45270855]
[1764887299400,7.18752246,139.13,139.09,4.70272411]
[1764887299590,0.67,139.12,139.09,5.36272411]
[1764887299899,0.67,139.12,139.09,12.55230342]
[1764887300465,17.96567425,139.16,139.11,4.70272411]
[1764887300669,0.67,139.15,139.12,12.60272411]
[1764887300903,0.67,139.15,139.12,7.9]
[1764887301402,0.67,139.15,139.12,13.26272411]
[1764887302199,7.85619667,139.16,139.13,5.36272411]
[1764887302793,0.67,139.15,139.13,4.70272411]
[1764887303185,7.18619667,139.16,139.13,0.66]
[1764887303396,7.85619667,139.16,139.13,0.66]
[1764887304908,7.85534078,139.18,139.14,4.70272411]
[1764887305081,12.64888853,139.18,139.14,5.36272411]
[1764887305282,0.67,139.17,139.14,5.36272411]
[1764887305496,0.67,139.17,139.13,12.55019912]
[1764887306804,7.85549436,139.17,139.13,11.89019912]
[1764887306986,7.85549436,139.17,139.14,0.66]
[1764887308183,7.85549436,139.17,139.14,5.36272411]
[1764887309495,7.85549436,139.17,139.14,12.54966837]
[1764887310005,7.85549436,139.17,139.14,20.44966837]
[1764887310712,7.85549436,139.17,139.11,23.49726298]
[1764887310713,0.67,139.16,139.11,23.49726298]
[1764887310887,10.16953982,139.16,139.11,13.26272411]
[1764887311086,5.37272411,139.16,139.11,13.26272411]
[1764887311289,0.67,139.15,139.11,13.26272411]
[1764887311489,0.67,139.15,139.11,7.9]
[1764887311707,0.67,139.15,139.11,12.60272411]
[1764887311912,5.37272411,139.15,139.11,7.9]
[1764887312110,5.37272411,139.15,139.1,11.89159743]
[1764887312111,5.37272411,139.15,139.1,4.70272411]
[1764887312316,0.67,139.14,139.1,13.26272411]
[1764887313010,7.8573945,139.14,139.1,20.45173603]
[1764887313412,0.67,139.13,139.1,20.45173603]
[1764887314305,7.1873945,139.14,139.11,5.36272411]
[1764887314504,7.8573945,139.14,139.11,5.36272411]
[1764887314818,7.8573945,139.14,139.12,4.70272411]
[1764887315019,7.8573945,139.14,139.11,12.55109954]
[1764887315199,0.67,139.14,139.11,12.55109954]
[1764887315519,0.67,139.16,139.13,4.70272411]
[1764887315817,0.67,139.15,139.13,7.9]
[1764887316316,7.85649472,139.15,139.13,7.9]
[1764887318095,0.67,139.15,139.13,7.9]